[Event "*** SCC Grand Prix: Titled Tuesday Blitz"]
[Site "Chess.com"]
[Date "2020.06.09"]
[Round "7"]
[White "GM_Buhmann"]
[Black "viktorskliarov"]
[Result "0-1"]
[WhiteElo "2728"]
[BlackElo "2603"]
[TimeControl "180+1"]
[EndTime "10:19:19 PDT"]
[Termination "viktorskliarov won by resignation"]

1. d4 {[%clk 0:03:00.9]} 1... Nf6 {[%clk 0:02:59]} 2. c4 {[%clk 0:03:01.1]} 2...
e6 {[%clk 0:02:58.8]} 3. Nc3 {[%clk 0:03:01.2]} 3... Bb4 {[%clk 0:02:58.6]} 4.
e3 {[%clk 0:03:00.4]} 4... b6 {[%clk 0:02:58.5]} 5. Bd2 {[%clk 0:02:57.4]} 5...
Bb7 {[%clk 0:02:58]} 6. Nf3 {[%clk 0:02:58]} 6... O-O {[%clk 0:02:57.4]} 7. Bd3
{[%clk 0:02:56.5]} 7... Bxc3 {[%clk 0:02:57.7]} 8. Bxc3 {[%clk 0:02:56.4]} 8...
Ne4 {[%clk 0:02:58.4]} 9. Qc2 {[%clk 0:02:55.7]} 9... f5 {[%clk 0:02:58.2]} 10.
O-O {[%clk 0:02:50.4]} 10... d6 {[%clk 0:02:58]} 11. Be1 {[%clk 0:02:49.4]}
11... Nd7 {[%clk 0:02:57.4]} 12. Nd2 {[%clk 0:02:48.5]} 12... Nxd2 {[%clk
0:02:57.3]} 13. Qxd2 {[%clk 0:02:46.2]} 13... Qg5 {[%clk 0:02:40.4]} 14. f3
{[%clk 0:02:44.4]} 14... Nf6 {[%clk 0:02:39.5]} 15. Rc1 {[%clk 0:02:30.7]} 15...
c5 {[%clk 0:02:14.1]} 16. Bg3 {[%clk 0:02:16.3]} 16... Rad8 {[%clk 0:01:55]} 17.
Qf2 {[%clk 0:02:09.8]} 17... Qg6 {[%clk 0:01:35.6]} 18. Rcd1 {[%clk 0:02:06.5]}
18... Ne4 {[%clk 0:01:16.4]} 19. fxe4 {[%clk 0:01:28.4]} 19... fxe4 {[%clk
0:01:15.7]} 20. Qxf8+ {[%clk 0:01:25.4]} 20... Rxf8 {[%clk 0:01:15.4]} 21. Rxf8+
{[%clk 0:01:19.3]} 21... Kxf8 {[%clk 0:01:15]} 22. Bxd6+ {[%clk 0:01:18.8]}
22... Ke8 {[%clk 0:01:02.7]} 23. Be2 {[%clk 0:01:04.3]} 23... cxd4 {[%clk
0:00:41.6]} 24. Rxd4 {[%clk 0:01:03.8]} 24... Qg5 {[%clk 0:00:38.8]} 25. Bf4
{[%clk 0:01:03.9]} 25... Qa5 {[%clk 0:00:37.8]} 26. Kf2 {[%clk 0:00:59.9]} 26...
e5 {[%clk 0:00:37.4]} 27. b4 {[%clk 0:00:57.6]} 27... Qxb4 {[%clk 0:00:34.4]}
28. Bxe5 {[%clk 0:00:57.7]} 28... Qa3 {[%clk 0:00:30.1]} 29. Bxg7 {[%clk
0:00:39.3]} 29... Qxa2 {[%clk 0:00:29.7]} 30. Be5 {[%clk 0:00:30.6]} 30... Ke7
{[%clk 0:00:30.1]} 31. h4 {[%clk 0:00:28.3]} 31... a5 {[%clk 0:00:29.1]} 32. Bc7
{[%clk 0:00:28.6]} 32... Qb2 {[%clk 0:00:26.2]} 33. c5 {[%clk 0:00:28.7]} 33...
bxc5 {[%clk 0:00:24.4]} 34. Bd6+ {[%clk 0:00:26.2]} 34... Kf6 {[%clk 0:00:18.8]}
35. Bxc5 {[%clk 0:00:26]} 35... Qc2 {[%clk 0:00:10.7]} 36. Ba3 {[%clk
0:00:22.3]} 36... a4 {[%clk 0:00:10.7]} 37. Rc4 {[%clk 0:00:21.8]} 37... Qb3
{[%clk 0:00:10]} 38. Rb4 {[%clk 0:00:19.9]} 38... Qxa3 {[%clk 0:00:09.6]} 39.
Rb6+ {[%clk 0:00:20.4]} 39... Ke5 {[%clk 0:00:09.3]} 40. Rxb7 {[%clk 0:00:21]}
40... Qc3 {[%clk 0:00:09.2]} 41. Rb5+ {[%clk 0:00:21.6]} 41... Kd6 {[%clk
0:00:09.4]} 42. Rb6+ {[%clk 0:00:21.7]} 42... Kc7 {[%clk 0:00:09.2]} 43. Ra6
{[%clk 0:00:22.3]} 43... a3 {[%clk 0:00:09.6]} 44. g4 {[%clk 0:00:22]} 44... Qb2
{[%clk 0:00:09.3]} 45. g5 {[%clk 0:00:22.4]} 45... a2 {[%clk 0:00:09.6]} 46. h5
{[%clk 0:00:22.5]} 46... a1=Q {[%clk 0:00:10]} 47. Rxa1 {[%clk 0:00:22.1]} 47...
Qxa1 {[%clk 0:00:10.9]} 48. Kg3 {[%clk 0:00:22.5]} 48... Qe5+ {[%clk 0:00:09.8]}
49. Kg4 {[%clk 0:00:22.9]} 49... Kd6 {[%clk 0:00:10.1]} 50. g6 {[%clk
0:00:22.3]} 50... h6 {[%clk 0:00:10.5]} 0-1

[Event "*** SCC Grand Prix: Titled Tuesday Blitz"]
[Site "Chess.com"]
[Date "2020.06.09"]
[Round "7"]
[White "doctorcristian"]
[Black "Caracternin123"]
[Result "0-1"]
[WhiteElo "2417"]
[BlackElo "2562"]
[TimeControl "180+1"]
[EndTime "10:19:19 PDT"]
[Termination "Caracternin123 won by checkmate"]

1. d4 {[%clk 0:03:00.9]} 1... Nf6 {[%clk 0:03:00.6]} 2. Nc3 {[%clk 0:02:58.7]}
2... d5 {[%clk 0:03:00.1]} 3. Bf4 {[%clk 0:02:58.2]} 3... e6 {[%clk 0:02:59.6]}
4. Nb5 {[%clk 0:02:57.6]} 4... Na6 {[%clk 0:02:59.2]} 5. e3 {[%clk 0:02:57.6]}
5... c6 {[%clk 0:02:59.5]} 6. Nc3 {[%clk 0:02:57.6]} 6... Bd6 {[%clk 0:02:59.8]}
7. Bxd6 {[%clk 0:02:57.7]} 7... Qxd6 {[%clk 0:03:00.7]} 8. Bxa6 {[%clk 0:02:58]}
8... bxa6 {[%clk 0:03:01.6]} 9. Nf3 {[%clk 0:02:58.5]} 9... O-O {[%clk 0:03:02]}
10. O-O {[%clk 0:02:58.2]} 10... Nd7 {[%clk 0:03:02.3]} 11. Na4 {[%clk
0:02:57.2]} 11... Rb8 {[%clk 0:03:02.3]} 12. Nd2 {[%clk 0:02:51.2]} 12... a5
{[%clk 0:02:55]} 13. b3 {[%clk 0:02:41.8]} 13... c5 {[%clk 0:02:53.5]} 14. c3
{[%clk 0:02:41.6]} 14... Ba6 {[%clk 0:02:48.3]} 15. Re1 {[%clk 0:02:41.1]} 15...
Rfc8 {[%clk 0:02:48.9]} 16. Rc1 {[%clk 0:02:38.4]} 16... c4 {[%clk 0:02:41.7]}
17. e4 {[%clk 0:02:20.6]} 17... Bb5 {[%clk 0:02:21.2]} 18. exd5 {[%clk
0:02:04.2]} 18... Bxa4 {[%clk 0:02:13.9]} 19. dxe6 {[%clk 0:02:04.2]} 19... cxb3
{[%clk 0:02:11.3]} 20. axb3 {[%clk 0:02:03.7]} 20... Bxb3 {[%clk 0:01:58.9]} 21.
exf7+ {[%clk 0:01:56.2]} 21... Bxf7 {[%clk 0:01:58]} 22. Ne4 {[%clk 0:01:55.5]}
22... Qg6 {[%clk 0:01:55.4]} 23. Qa4 {[%clk 0:01:32.4]} 23... Nb6 {[%clk
0:01:26.3]} 24. Qxa5 {[%clk 0:01:30.8]} 24... Nd5 {[%clk 0:01:25.5]} 25. Qxa7
{[%clk 0:01:25.1]} 25... Re8 {[%clk 0:01:24.7]} 26. f3 {[%clk 0:01:17.2]} 26...
Nf4 {[%clk 0:01:21.1]} 27. Ng3 {[%clk 0:01:15.3]} 27... Ra8 {[%clk 0:01:13.9]}
28. Qc7 {[%clk 0:01:10.1]} 28... Nd3 {[%clk 0:01:11.8]} 29. Rxe8+ {[%clk
0:01:08.3]} 29... Rxe8 {[%clk 0:01:12.7]} 30. Ra1 {[%clk 0:00:58.3]} 30... Qg5
{[%clk 0:01:02.6]} 31. h3 {[%clk 0:00:35.6]} 31... h5 {[%clk 0:00:46.1]} 32. Ne4
{[%clk 0:00:35.4]} 32... Qe3+ {[%clk 0:00:42.6]} 33. Kh2 {[%clk 0:00:34.9]}
33... Nf4 {[%clk 0:00:39.8]} 34. Ra2 {[%clk 0:00:32.4]} 34... Ne2 {[%clk
0:00:38.4]} 35. Rxe2 {[%clk 0:00:28.9]} 35... Qxe2 {[%clk 0:00:39.3]} 36. Ng5
{[%clk 0:00:26.7]} 36... Qe7 {[%clk 0:00:39.4]} 37. Qf4 {[%clk 0:00:25.9]} 37...
Rc8 {[%clk 0:00:35.8]} 38. Qf5 {[%clk 0:00:22.3]} 38... Qc7+ {[%clk 0:00:35.7]}
39. Kh1 {[%clk 0:00:20.8]} 39... g6 {[%clk 0:00:34.4]} 40. Qf6 {[%clk
0:00:19.9]} 40... Rf8 {[%clk 0:00:33.7]} 41. Ne6 {[%clk 0:00:18.2]} 41... Bxe6
{[%clk 0:00:24.5]} 42. Qxg6+ {[%clk 0:00:18.5]} 42... Qg7 {[%clk 0:00:21.4]} 43.
Qxe6+ {[%clk 0:00:18.4]} 43... Qf7 {[%clk 0:00:21.9]} 44. Qe5 {[%clk 0:00:16.2]}
44... Qf5 {[%clk 0:00:21.1]} 45. Qg3+ {[%clk 0:00:14.8]} 45... Kh7 {[%clk
0:00:20.9]} 46. Qc7+ {[%clk 0:00:14.5]} 46... Rf7 {[%clk 0:00:21]} 47. Qd6
{[%clk 0:00:14.9]} 47... Ra7 {[%clk 0:00:20.6]} 48. Kh2 {[%clk 0:00:14.4]} 48...
h4 {[%clk 0:00:20.6]} 49. d5 {[%clk 0:00:13]} 49... Rg7 {[%clk 0:00:18]} 50. c4
{[%clk 0:00:11.7]} 50... Qg5 {[%clk 0:00:18]} 51. g4 {[%clk 0:00:10.3]} 51...
hxg3+ {[%clk 0:00:17.8]} 52. Kg1 {[%clk 0:00:10.5]} 52... Qc1+ {[%clk
0:00:17.8]} 53. Kg2 {[%clk 0:00:10.6]} 53... Qd2+ {[%clk 0:00:18.7]} 54. Kh1
{[%clk 0:00:10.9]} 54... Qh2# {[%clk 0:00:19]} 0-1

[Event "*** SCC Grand Prix: Titled Tuesday Blitz"]
[Site "Chess.com"]
[Date "2020.06.09"]
[Round "7"]
[White "DonPreuss"]
[Black "colegiodemadrid"]
[Result "1-0"]
[WhiteElo "2230"]
[BlackElo "2357"]
[TimeControl "180+1"]
[EndTime "10:19:19 PDT"]
[Termination "DonPreuss won by resignation"]

1. d4 {[%clk 0:03:00.9]} 1... Nf6 {[%clk 0:02:59.4]} 2. Nc3 {[%clk 0:02:59.7]}
2... d5 {[%clk 0:02:58.6]} 3. e4 {[%clk 0:03:00]} 3... dxe4 {[%clk 0:02:55.8]}
4. f3 {[%clk 0:02:59.6]} 4... exf3 {[%clk 0:02:54.8]} 5. Nxf3 {[%clk 0:02:58.7]}
5... g6 {[%clk 0:02:55.7]} 6. Bd3 {[%clk 0:02:57.5]} 6... Bg7 {[%clk 0:02:56.2]}
7. O-O {[%clk 0:02:57.5]} 7... O-O {[%clk 0:02:56.7]} 8. Qe1 {[%clk 0:02:57.8]}
8... Nc6 {[%clk 0:02:55.1]} 9. Qh4 {[%clk 0:02:57.5]} 9... Bg4 {[%clk 0:02:47]}
10. Ne2 {[%clk 0:02:42.1]} 10... Qd5 {[%clk 0:02:23.2]} 11. Nf4 {[%clk
0:02:29.1]} 11... Qd6 {[%clk 0:02:21.8]} 12. c3 {[%clk 0:02:26.7]} 12... e5
{[%clk 0:02:15.1]} 13. dxe5 {[%clk 0:02:25.4]} 13... Nxe5 {[%clk 0:02:15.1]} 14.
Nxe5 {[%clk 0:02:24.5]} 14... Qxe5 {[%clk 0:02:16]} 15. Nh3 {[%clk 0:01:47.8]}
15... Bxh3 {[%clk 0:02:00]} 16. Qxh3 {[%clk 0:01:44.1]} 16... Rad8 {[%clk
0:01:53.7]} 17. Bc2 {[%clk 0:01:42.9]} 17... Rfe8 {[%clk 0:01:47.8]} 18. Bf4
{[%clk 0:01:34.8]} 18... Qc5+ {[%clk 0:01:41.9]} 19. Kh1 {[%clk 0:01:34.2]}
19... Re2 {[%clk 0:01:38.2]} 20. Bb3 {[%clk 0:01:31]} 20... Rxb2 {[%clk
0:01:23.1]} 21. Rae1 {[%clk 0:01:30.7]} 21... Rf2 {[%clk 0:01:20.2]} 22. Bg3
{[%clk 0:01:21.6]} 22... Rxf1+ {[%clk 0:01:18.6]} 23. Rxf1 {[%clk 0:01:21.8]}
23... Qxc3 {[%clk 0:01:10.5]} 24. Qh4 {[%clk 0:01:00.8]} 24... Qd3 {[%clk
0:01:00.6]} 25. Bc4 {[%clk 0:00:53.2]} 25... Qd4 {[%clk 0:00:53.6]} 26. Rf4
{[%clk 0:00:39.6]} 26... Qa1+ {[%clk 0:00:37.3]} 27. Rf1 {[%clk 0:00:37]} 27...
Rd1 {[%clk 0:00:37.1]} 28. Be1 {[%clk 0:00:34.8]} 28... Rd4 {[%clk 0:00:28.1]}
29. Qf2 {[%clk 0:00:18.7]} 29... Rxc4 {[%clk 0:00:25.6]} 30. Bd2 {[%clk
0:00:18.2]} 30... Qd4 {[%clk 0:00:24.3]} 31. Be3 {[%clk 0:00:18.2]} 31... Qd6
{[%clk 0:00:23]} 32. h3 {[%clk 0:00:15.6]} 32... Re4 {[%clk 0:00:21.7]} 33. Bg5
{[%clk 0:00:15.3]} 33... Re6 {[%clk 0:00:21.3]} 34. Bf4 {[%clk 0:00:14.5]} 34...
Qe7 {[%clk 0:00:20.5]} 35. Qxa7 {[%clk 0:00:14.1]} 35... h6 {[%clk 0:00:19.4]}
36. Qxb7 {[%clk 0:00:14.2]} 36... Re1 {[%clk 0:00:18.9]} 37. Qf3 {[%clk
0:00:13.4]} 37... Rxf1+ {[%clk 0:00:18.2]} 38. Qxf1 {[%clk 0:00:14.3]} 38... Ne4
{[%clk 0:00:18.3]} 39. Qa6 {[%clk 0:00:12.5]} 39... f5 {[%clk 0:00:18.4]} 40.
Qa8+ {[%clk 0:00:11.5]} 40... Kh7 {[%clk 0:00:18.6]} 41. Qc6 {[%clk 0:00:11.8]}
41... Nf6 {[%clk 0:00:17.6]} 42. Qxc7 {[%clk 0:00:11.2]} 42... Nh5 {[%clk
0:00:18.1]} 43. Qxe7 {[%clk 0:00:10.7]} 43... Nxf4 {[%clk 0:00:17.1]} 44. a4
{[%clk 0:00:09.8]} 44... Nd5 {[%clk 0:00:16.8]} 45. Qb7 {[%clk 0:00:09.3]} 45...
Nc3 {[%clk 0:00:16.3]} 46. a5 {[%clk 0:00:09.5]} 46... Ne2 {[%clk 0:00:16.9]}
47. a6 {[%clk 0:00:09.7]} 47... Ng3+ {[%clk 0:00:17.3]} 48. Kg1 {[%clk
0:00:09.5]} 48... h5 {[%clk 0:00:16.2]} 49. Kf2 {[%clk 0:00:07.8]} 49... h4
{[%clk 0:00:15.3]} 50. a7 {[%clk 0:00:07.6]} 50... Kh6 {[%clk 0:00:15.8]} 51.
a8=Q {[%clk 0:00:07.5]} 51... Bd4+ {[%clk 0:00:16.1]} 52. Ke1 {[%clk 0:00:07.5]}
1-0

[Event "*** SCC Grand Prix: Titled Tuesday Blitz"]
[Site "Chess.com"]
[Date "2020.06.09"]
[Round "7"]
[White "MikaelyanArman"]
[Black "heartofatiger"]
[Result "1-0"]
[WhiteElo "2762"]
[BlackElo "2593"]
[TimeControl "180+1"]
[EndTime "10:19:21 PDT"]
[Termination "MikaelyanArman won on time"]

1. Nf3 {[%clk 0:03:00.9]} 1... Nf6 {[%clk 0:02:59.6]} 2. c4 {[%clk 0:03:01]}
2... g6 {[%clk 0:02:58.9]} 3. b3 {[%clk 0:03:01.3]} 3... Bg7 {[%clk 0:02:59.2]}
4. Bb2 {[%clk 0:03:01.8]} 4... O-O {[%clk 0:02:59.7]} 5. g3 {[%clk 0:03:02.2]}
5... d6 {[%clk 0:02:59.9]} 6. Bg2 {[%clk 0:02:59.5]} 6... e5 {[%clk 0:03:00.4]}
7. O-O {[%clk 0:02:59.2]} 7... a5 {[%clk 0:03:00.6]} 8. d3 {[%clk 0:02:57.4]}
8... Nc6 {[%clk 0:02:58.4]} 9. Nc3 {[%clk 0:02:54.7]} 9... h6 {[%clk 0:02:51]}
10. e3 {[%clk 0:02:53.1]} 10... Be6 {[%clk 0:02:49.1]} 11. d4 {[%clk 0:02:46.1]}
11... exd4 {[%clk 0:02:48.6]} 12. Nxd4 {[%clk 0:02:43.6]} 12... Bd7 {[%clk
0:02:38.6]} 13. Nd5 {[%clk 0:02:37.9]} 13... Re8 {[%clk 0:02:35.3]} 14. Qd2
{[%clk 0:02:25.1]} 14... a4 {[%clk 0:02:26.2]} 15. b4 {[%clk 0:02:11.9]} 15...
Ne5 {[%clk 0:02:24.7]} 16. Rac1 {[%clk 0:02:05.2]} 16... a3 {[%clk 0:02:23.7]}
17. Ba1 {[%clk 0:02:03.6]} 17... Nh7 {[%clk 0:02:18]} 18. f4 {[%clk 0:01:55.1]}
18... Ng4 {[%clk 0:02:16.1]} 19. h3 {[%clk 0:01:54]} 19... Ngf6 {[%clk
0:02:06.9]} 20. g4 {[%clk 0:01:46.5]} 20... c6 {[%clk 0:01:57]} 21. Nc3 {[%clk
0:01:42.5]} 21... Qe7 {[%clk 0:01:53.7]} 22. Rce1 {[%clk 0:01:41.1]} 22... Rad8
{[%clk 0:01:31.1]} 23. Nb3 {[%clk 0:01:38.2]} 23... Be6 {[%clk 0:01:22.2]} 24.
Na5 {[%clk 0:01:33.8]} 24... Qc7 {[%clk 0:01:18.4]} 25. f5 {[%clk 0:01:20]}
25... Bc8 {[%clk 0:01:17.1]} 26. Qd3 {[%clk 0:01:12.7]} 26... Nf8 {[%clk
0:00:59.3]} 27. e4 {[%clk 0:00:46.5]} 27... N8d7 {[%clk 0:00:56.6]} 28. Nb3
{[%clk 0:00:46.3]} 28... Ne5 {[%clk 0:00:56.4]} 29. Qe2 {[%clk 0:00:46.5]} 29...
Qb6+ {[%clk 0:00:55.1]} 30. c5 {[%clk 0:00:41.2]} 30... Qxb4 {[%clk 0:00:50.3]}
31. cxd6 {[%clk 0:00:30.4]} 31... Rxd6 {[%clk 0:00:50.2]} 32. Kh1 {[%clk
0:00:29.9]} 32... Rd3 {[%clk 0:00:48.2]} 33. Nd5 {[%clk 0:00:22.3]} 33... cxd5
{[%clk 0:00:42.6]} 34. Bxe5 {[%clk 0:00:22.1]} 34... dxe4 {[%clk 0:00:32]} 35.
Bxf6 {[%clk 0:00:17.5]} 35... Bxf6 {[%clk 0:00:31.8]} 36. fxg6 {[%clk
0:00:16.5]} 36... Qe7 {[%clk 0:00:17]} 37. gxf7+ {[%clk 0:00:11.8]} 37... Qxf7
{[%clk 0:00:16.8]} 38. Nc5 {[%clk 0:00:11.7]} 38... Rd4 {[%clk 0:00:14]} 39. Qf2
{[%clk 0:00:11.5]} 39... Rf8 {[%clk 0:00:11.4]} 40. Nxe4 {[%clk 0:00:11.3]}
40... Bg7 {[%clk 0:00:09.2]} 41. Qe3 {[%clk 0:00:11.1]} 41... Qd7 {[%clk
0:00:07.4]} 42. Rxf8+ {[%clk 0:00:10.7]} 42... Bxf8 {[%clk 0:00:07.8]} 43. Nf6+
{[%clk 0:00:10.5]} 1-0

[Event "*** SCC Grand Prix: Titled Tuesday Blitz"]
[Site "Chess.com"]
[Date "2020.06.09"]
[Round "7"]
[White "kingofthenil"]
[Black "GMJustin"]
[Result "1-0"]
[WhiteElo "2438"]
[BlackElo "2297"]
[TimeControl "180+1"]
[EndTime "10:19:21 PDT"]
[Termination "kingofthenil won on time"]

1. e4 {[%clk 0:01:23.5]} 1... e5 {[%clk 0:02:56.4]} 2. Nf3 {[%clk 0:01:23.3]}
2... Nc6 {[%clk 0:02:55.5]} 3. Bc4 {[%clk 0:01:24.2]} 3... Nf6 {[%clk
0:02:54.5]} 4. d3 {[%clk 0:01:25.1]} 4... h6 {[%clk 0:02:50.4]} 5. c3 {[%clk
0:01:26]} 5... d6 {[%clk 0:02:48.9]} 6. Bb3 {[%clk 0:01:26.5]} 6... g5 {[%clk
0:02:41.6]} 7. d4 {[%clk 0:01:21.7]} 7... exd4 {[%clk 0:02:24.7]} 8. cxd4 {[%clk
0:01:22.6]} 8... Nxe4 {[%clk 0:02:19.8]} 9. O-O {[%clk 0:01:20.7]} 9... d5
{[%clk 0:02:11.4]} 10. Re1 {[%clk 0:01:16.7]} 10... Be7 {[%clk 0:02:06]} 11. Nc3
{[%clk 0:01:12.8]} 11... Nxc3 {[%clk 0:02:01.4]} 12. bxc3 {[%clk 0:01:13.7]}
12... O-O {[%clk 0:02:01.1]} 13. Ne5 {[%clk 0:01:12.2]} 13... Nxe5 {[%clk
0:01:58.7]} 14. Rxe5 {[%clk 0:01:13.1]} 14... Be6 {[%clk 0:01:57.7]} 15. Re2
{[%clk 0:01:05.8]} 15... c6 {[%clk 0:01:53.7]} 16. Re3 {[%clk 0:01:02]} 16...
Bd6 {[%clk 0:01:49.9]} 17. Qh5 {[%clk 0:01:00.1]} 17... Qf6 {[%clk 0:01:46.1]}
18. h4 {[%clk 0:00:49.4]} 18... g4 {[%clk 0:01:29]} 19. Bc2 {[%clk 0:00:09.8]}
19... Rae8 {[%clk 0:01:19.4]} 20. Re5 {[%clk 0:00:08.3]} 20... g3 {[%clk
0:00:15.7]} 21. fxg3 {[%clk 0:00:04.6]} 21... Bxe5 {[%clk 0:00:15.4]} 22. dxe5
{[%clk 0:00:03.9]} 22... Qg7 {[%clk 0:00:14.9]} 23. Bxh6 {[%clk 0:00:02.9]}
23... Qg4 {[%clk 0:00:15]} 24. Qxg4+ {[%clk 0:00:01.1]} 24... Bxg4 {[%clk
0:00:14.3]} 25. Bxf8 {[%clk 0:00:02]} 25... Kxf8 {[%clk 0:00:14.6]} 26. Rb1
{[%clk 0:00:02.9]} 26... b5 {[%clk 0:00:13.6]} 27. a4 {[%clk 0:00:02.5]} 27...
a6 {[%clk 0:00:12.7]} 28. axb5 {[%clk 0:00:02.1]} 28... axb5 {[%clk 0:00:12.1]}
29. Re1 {[%clk 0:00:03]} 29... f6 {[%clk 0:00:12]} 30. e6 {[%clk 0:00:01.8]}
30... Rxe6 {[%clk 0:00:09.8]} 31. Rxe6 {[%clk 0:00:01.4]} 31... Bxe6 {[%clk
0:00:10.1]} 32. Kf2 {[%clk 0:00:02.3]} 32... c5 {[%clk 0:00:10.1]} 33. Ke3
{[%clk 0:00:02.7]} 33... Kg7 {[%clk 0:00:09.5]} 34. Kf4 {[%clk 0:00:02.6]} 34...
b4 {[%clk 0:00:04.4]} 35. cxb4 {[%clk 0:00:03.5]} 35... cxb4 {[%clk 0:00:04.7]}
36. Ke3 {[%clk 0:00:04.4]} 36... b3 {[%clk 0:00:03.6]} 37. Bb1 {[%clk 0:00:02]}
37... d4+ {[%clk 0:00:01.9]} 38. Kxd4 {[%clk 0:00:02.1]} 38... Kh6 {[%clk
0:00:01.9]} 39. Ke3 {[%clk 0:00:02.3]} 39... Bd5 {[%clk 0:00:02.1]} 40. Kf2
{[%clk 0:00:01.5]} 40... Kh5 {[%clk 0:00:02.1]} 41. Bd3 {[%clk 0:00:02]} 41...
b2 {[%clk 0:00:02.1]} 42. Bb1 {[%clk 0:00:01.8]} 42... Kg4 {[%clk 0:00:02.3]}
43. Bc2 {[%clk 0:00:01.4]} 43... f5 {[%clk 0:00:02.3]} 44. Bd1+ {[%clk
0:00:01.6]} 1-0

[Event "*** SCC Grand Prix: Titled Tuesday Blitz"]
[Site "Chess.com"]
[Date "2020.06.09"]
[Round "7"]
[White "Shushik"]
[Black "Logman74"]
[Result "0-1"]
[WhiteElo "2168"]
[BlackElo "2341"]
[TimeControl "180+1"]
[EndTime "10:19:21 PDT"]
[Termination "Logman74 won by checkmate"]

1. e4 {[%clk 0:03:00.9]} 1... c6 {[%clk 0:02:58.9]} 2. d4 {[%clk 0:03:00.7]}
2... d5 {[%clk 0:02:58.3]} 3. Nc3 {[%clk 0:03:00.5]} 3... dxe4 {[%clk
0:02:57.3]} 4. Nxe4 {[%clk 0:03:00.6]} 4... Nf6 {[%clk 0:02:57.8]} 5. Nxf6+
{[%clk 0:02:59]} 5... gxf6 {[%clk 0:02:58.7]} 6. Nf3 {[%clk 0:02:56.6]} 6... Bf5
{[%clk 0:02:56.9]} 7. Bc4 {[%clk 0:02:49.6]} 7... e6 {[%clk 0:02:56.2]} 8. Bb3
{[%clk 0:02:47.6]} 8... Nd7 {[%clk 0:02:54.7]} 9. c4 {[%clk 0:02:46.7]} 9... Rg8
{[%clk 0:02:52.1]} 10. g3 {[%clk 0:02:38.2]} 10... Bb4+ {[%clk 0:02:48.3]} 11.
Bd2 {[%clk 0:02:35.9]} 11... Bxd2+ {[%clk 0:02:47.5]} 12. Qxd2 {[%clk 0:02:36]}
12... Qb6 {[%clk 0:02:38.4]} 13. d5 {[%clk 0:02:25.7]} 13... Nc5 {[%clk
0:02:29.9]} 14. O-O {[%clk 0:02:06.7]} 14... O-O-O {[%clk 0:02:25.8]} 15. Qc3
{[%clk 0:01:53.7]} 15... e5 {[%clk 0:02:12.1]} 16. Bc2 {[%clk 0:01:47.9]} 16...
Ne4 {[%clk 0:02:02.4]} 17. Bxe4 {[%clk 0:01:43.2]} 17... Bxe4 {[%clk 0:02:01.7]}
18. Nd2 {[%clk 0:01:42.9]} 18... Bf5 {[%clk 0:01:58.6]} 19. c5 {[%clk
0:01:39.6]} 19... Qb5 {[%clk 0:01:54.5]} 20. d6 {[%clk 0:01:37.7]} 20... Qd3
{[%clk 0:01:51.1]} 21. Qxd3 {[%clk 0:01:33.2]} 21... Bxd3 {[%clk 0:01:48.6]} 22.
Rfe1 {[%clk 0:01:34.1]} 22... b6 {[%clk 0:01:45.8]} 23. b4 {[%clk 0:01:33.6]}
23... Rg4 {[%clk 0:01:42]} 24. Re3 {[%clk 0:01:29.5]} 24... Bf5 {[%clk
0:01:34.1]} 25. a3 {[%clk 0:01:18.6]} 25... Rd4 {[%clk 0:01:23.4]} 26. Nb3
{[%clk 0:01:17.4]} 26... Rd5 {[%clk 0:01:23]} 27. Rc1 {[%clk 0:01:15.3]} 27...
Kb7 {[%clk 0:01:19.2]} 28. f3 {[%clk 0:01:12.3]} 28... Bd3 {[%clk 0:01:09.8]}
29. Kf2 {[%clk 0:01:07.4]} 29... f5 {[%clk 0:01:05.8]} 30. Rd1 {[%clk
0:00:56.7]} 30... e4 {[%clk 0:01:04.6]} 31. Rc1 {[%clk 0:00:43.7]} 31... Rg8
{[%clk 0:00:56.6]} 32. Rc3 {[%clk 0:00:34.8]} 32... Re8 {[%clk 0:00:52.7]} 33.
Nc1 {[%clk 0:00:29.9]} 33... Bb5 {[%clk 0:00:51.6]} 34. Nb3 {[%clk 0:00:23.9]}
34... Rd1 {[%clk 0:00:49.9]} 35. Rc1 {[%clk 0:00:21.5]} 35... Rd5 {[%clk
0:00:46]} 36. fxe4 {[%clk 0:00:20.5]} 36... fxe4 {[%clk 0:00:45.2]} 37. Rce1
{[%clk 0:00:19.7]} 37... f5 {[%clk 0:00:44.2]} 38. h3 {[%clk 0:00:15.4]} 38...
Bc4 {[%clk 0:00:43.7]} 39. g4 {[%clk 0:00:12.5]} 39... Rf8 {[%clk 0:00:38.7]}
40. gxf5 {[%clk 0:00:11.6]} 40... Rdxf5+ {[%clk 0:00:36.3]} 41. Kg3 {[%clk
0:00:10.8]} 41... Rg8+ {[%clk 0:00:35.2]} 42. Kh2 {[%clk 0:00:07.6]} 42... Rf2+
{[%clk 0:00:34.2]} 43. Kh1 {[%clk 0:00:07.7]} 43... Rgg2 {[%clk 0:00:32.8]} 44.
d7 {[%clk 0:00:04.8]} 44... Rh2+ {[%clk 0:00:32.4]} 45. Kg1 {[%clk 0:00:04.6]}
45... Rfg2# {[%clk 0:00:32.1]} 0-1